bitfinex/quotes_ETHUSD_20260203
["timestamp","ask_amount","ask_price","bid_price","bid_amount"]
[1770080808397,2.0671583,2352.6,2351.3,10.85098918]
[1770080808601,1.00449937,2352.6,2351.3,10.85098918]
[1770080809217,2.031421,2352.8,2351.3,10.85098918]
[1770080809422,11.42175534,2352.9,2351.3,10.85098918]
[1770080810020,10.35920587,2352.9,2351.6,9.68388729]
[1770080810227,0.31421218,2352.9,2351.6,9.68388729]
[1770080810722,0.0011,2352.5,2351.6,9.68388729]
[1770080811233,0.0011,2352.5,2351.7,1.06306076]
[1770080813222,0.0011,2352.5,2351.6,4.25224305]
[1770080817122,0.0011,2352.5,2351.6,4.26512909]
[1770080817745,0.31421218,2352.9,2352.2,0.01288604]
[1770080817951,0.31421218,2352.9,2352.1,1.06287997]
[1770080818446,1.06338001,2353.5,2352.1,1.06287997]
[1770080818447,0.0011,2353.5,2352.3,9.67100125]
[1770080818743,0.0011,2353.5,2352.5,0.01288604]
[1770080819770,10.00404239,2353.5,2352.1,1.06287997]
[1770080820079,0.0011,2353.5,2352.3,1.06278961]
[1770080820257,0.0011,2353.5,2352.3,10.73379086]
[1770080820737,0.0011,2353.5,2352.3,1.06278961]
[1770080820738,11.06629273,2353.5,2352.3,1.06278961]
[1770080821232,10.00404239,2353.5,2352.3,1.06278961]
[1770080821464,11.0662997,2353.5,2352.3,1.06278961]
[1770080822260,10.00294239,2353.3,2352.1,4.25115844]
[1770080822571,10.00294239,2353.1,2351.7,10.56200125]
[1770080822750,12.00960425,2353.0,2352.0,1.06291108]
[1770080822945,11.09472352,2353.0,2352.0,1.06291108]
[1770080824163,0.91575174,2352.9,2352.0,1.06291108]
[1770080824472,11.09472352,2353.0,2351.9,0.001]
[1770080824643,0.91577944,2352.9,2351.9,0.001]
[1770080824843,12.20407651,2353.3,2352.0,0.01288604]
[1770080825072,0.91573829,2353.2,2352.0,0.01288604]
[1770080825371,0.91573829,2353.1,2352.0,0.01288604]
[1770080825576,0.91573829,2353.0,2352.0,0.01288604]
[1770080825783,12.20407651,2353.3,2351.9,9.67200125]
[1770080825974,6.88220764,2353.2,2351.9,9.67200125]
[1770080826277,1.97827829,2353.1,2352.0,1.06292517]
[1770080826578,10.91876354,2353.0,2352.0,1.06292517]
[1770080826877,7.10404758,2353.2,2352.0,1.06292517]
[1770080827058,0.91580634,2353.1,2352.0,1.06292517]
[1770080827242,0.91580634,2353.0,2352.1,0.53156863]
[1770080827443,7.10404758,2353.2,2352.1,0.53156863]
[1770080827752,0.91577678,2353.1,2352.1,0.53156863]
[1770080827949,0.91577678,2353.0,2352.1,0.53156863]
[1770080828154,5.96638649,2353.2,2352.1,0.53156863]
[1770080828370,2.73282132,2353.1,2352.1,0.53156863]
[1770080828570,0.91577487,2353.0,2352.2,1.06283479]
[1770080828767,4.70577487,2353.0,2352.2,1.06283479]
[1770080829081,3.79,2353.0,2352.2,1.06283479]
[1770080829983,10.00294239,2352.9,2351.9,0.001]
[1770080830190,10.00294239,2352.7,2351.9,0.001]
[1770080830401,10.00294239,2352.4,2351.6,0.001]
[1770080830688,11.98160862,2352.3,2351.6,0.001]
[1770080830840,12.20329031,2352.6,2351.6,0.001]
[1770080831042,2.5154875,2352.5,2351.6,0.001]
[1770080831242,0.91615847,2352.4,2351.6,0.001]
[1770080831496,10.91910086,2352.4,2351.6,0.001]
[1770080831652,10.91910086,2352.3,2351.6,0.001]
[1770080831853,10.00294239,2352.3,2351.6,0.001]
[1770080832101,11.00323663,2352.2,2351.6,0.001]
[1770080832386,10.91931286,2352.1,2351.6,0.001]
[1770080832546,11.06582969,2352.1,2351.6,0.001]
[1770080833343,0.91600135,2352.0,2351.6,0.001]
[1770080833660,10.00294239,2352.1,2351.6,0.001]
[1770080833971,2.95413606,2352.2,2351.6,0.001]
[1770080834175,0.91588271,2352.1,2351.6,0.001]
[1770080834393,11.89423663,2352.2,2351.6,0.001]
[1770080834684,0.91577569,2352.1,2351.6,0.001]
[1770080834887,1.89129424,2352.2,2351.6,0.001]
[1770080835062,0.891,2352.2,2351.6,0.001]
[1770080835259,1.59932903,2352.5,2351.6,0.001]
[1770080835459,0.91562443,2352.4,2351.6,0.001]
[1770080835664,4.93500988,2352.7,2351.6,0.001]
[1770080835889,1.60440346,2352.6,2351.6,0.001]
[1770080836085,0.91554304,2352.5,2351.6,0.001]
[1770080836290,0.91554304,2352.5,2351.8,0.001]
[1770080836599,2.03600988,2352.8,2351.8,0.001]
[1770080836795,0.91549209,2352.7,2351.8,0.001]
[1770080836980,0.891,2352.8,2351.8,0.53401899]
[1770080836981,0.91549209,2352.6,2351.8,0.53401899]
[1770080837170,0.891,2352.8,2351.8,0.53401899]
[1770080837171,3.79,2352.7,2351.8,0.53401899]
[1770080837358,0.91553199,2352.6,2351.8,0.53401899]
[1770080837561,0.91553199,2352.6,2351.8,0.001]
[1770080837562,0.91554068,2352.5,2351.8,0.001]
[1770080837788,10.00294239,2352.5,2351.8,0.001]
[1770080837971,10.91854762,2352.4,2351.8,0.001]
[1770080838174,10.00294239,2352.4,2351.8,0.001]
[1770080838379,0.91570365,2352.3,2351.8,0.001]
[1770080838583,1.0918646,2352.2,2351.8,0.001]
[1770080838967,5.99761967,2352.7,2351.8,0.001]
[1770080839166,0.91561405,2352.6,2351.8,0.001]
[1770080839469,5.99761967,2352.7,2351.8,0.001]
[1770080839470,0.91561405,2352.5,2351.8,0.001]
[1770080839791,3.79,2352.7,2351.8,0.001]
[1770080839959,0.9156111,2352.6,2351.8,0.001]
[1770080840166,0.6741621,2352.6,2351.8,0.001]
[1770080840684,3.79,2352.7,2351.8,0.001]
[1770080841498,0.891,2352.8,2351.8,0.001]
[1770080841700,0.91557326,2352.7,2351.8,9.70770576]
[1770080841908,0.0011,2353.0,2352.2,0.01288604]
[1770080842518,0.0011,2353.3,2352.5,0.01288604]
[1770080842829,4.1129219,2354.1,2353.0,0.01288604]
[1770080842830,1.46793178,2354.1,2353.0,0.01288604]
[1770080843118,0.3229219,2354.1,2353.0,0.01288604]
[1770080843329,0.3229219,2354.1,2353.3,0.01288604]
[1770080843477,0.3229219,2354.1,2353.0,9.7195918]
[1770080843678,0.3229219,2354.1,2352.6,10.76935984]
[1770080843679,10.20604598,2354.1,2352.6,10.76935984]
[1770080844002,9.14405678,2354.1,2352.8,0.01288604]
[1770080844510,9.73464164,2354.0,2352.6,1.06265408]
[1770080844724,8.82113488,2354.0,2352.6,1.06265408]
[1770080845214,9.88316415,2354.0,2352.6,1.06265408]
[1770080845519,8.82113488,2353.8,2352.6,1.06265408]
[1770080846612,1.44540069,2353.9,2352.9,1.06251859]
[1770080846914,8.82113488,2353.9,2352.8,1.06255699]
[1770080847716,8.82113488,2353.9,2351.9,0.24645634]
[1770080847717,8.82113488,2353.5,2351.8,9.70770576]
[1770080848040,10.62499376,2353.4,2352.3,1.06276495]
[1770080848178,8.82113488,2353.2,2351.8,0.001]
[1770080848378,8.82113488,2353.0,2351.8,1.06401457]
[1770080848677,0.97343419,2352.9,2351.9,1.06297036]
[1770080848995,1.06239235,2353.2,2351.9,1.0758564]
[1770080849194,0.91318608,2353.1,2351.9,1.0758564]
[1770080849394,1.06239235,2353.2,2351.9,1.0758564]
[1770080849590,0.91330247,2353.1,2351.9,1.06297036]
[1770080849794,9.88352723,2353.2,2351.9,1.06297036]
[1770080849988,2.32659465,2353.1,2352.4,0.001]
[1770080850214,1.41329033,2353.1,2352.4,0.001]
[1770080850784,8.82113488,2353.0,2352.4,0.001]
[1770080851121,8.82113488,2353.0,2352.1,0.001]
[1770080853076,2.47571886,2353.1,2352.1,0.001]
[1770080853282,1.06242853,2353.1,2352.1,0.001]
[1770080853605,9.88356341,2353.1,2352.1,0.001]
[1770080854400,8.82113488,2353.1,2352.1,0.001]
[1770080854909,9.88356851,2353.1,2352.1,0.001]
[1770080855111,8.82113488,2353.1,2352.1,0.001]
[1770080855296,3.79,2353.0,2352.1,0.001]
[1770080856580,3.79,2353.0,2352.2,9.7195918]
[1770080856910,3.79,2353.0,2352.3,1.06278961]
[1770080859815,3.79,2353.0,2352.2,1.06280013]
[1770080860890,3.79,2353.0,2352.3,0.01288604]
[1770080861088,3.79,2353.0,2352.3,0.53281562]
[1770080861291,8.82113488,2353.3,2352.4,1.06274443]
[1770080862690,3.79,2353.4,2352.4,1.06274443]
[1770080863511,3.79,2353.4,2352.4,1.06374443]
[1770080863724,3.79,2353.4,2352.4,10.77045019]
[1770080863907,3.79,2353.4,2352.5,0.82994669]
[1770080864088,0.0011,2353.0,2352.5,0.82994669]
[1770080865715,8.82223488,2353.0,2352.4,0.001]
[1770080866022,8.82113488,2352.8,2352.4,0.001]
[1770080866226,8.82113488,2352.8,2352.1,0.001]
[1770080867831,8.82113488,2352.6,2351.8,0.001]
[1770080867997,9.79475704,2352.5,2351.8,0.001]
[1770080868326,8.82113488,2352.5,2351.8,0.001]
[1770080868533,8.82113488,2352.3,2351.6,0.001]
[1770080869028,8.82113488,2352.1,2351.5,0.64158636]
[1770080869824,9.88403885,2352.1,2351.5,0.64158636]
[1770080870135,1.07750389,2352.0,2351.5,0.64158636]
[1770080870901,10.10132186,2352.0,2351.3,0.001]
[1770080871319,9.02381797,2351.6,2350.1,1.06376404]
[1770080871529,9.02381797,2351.4,2350.1,1.06376404]
[1770080871853,1.06324161,2351.3,2350.1,1.06377834]
[1770080872030,9.55543878,2351.2,2350.0,1.06379794]
[1770080872847,9.55543878,2351.2,2349.7,4.25580301]
[1770080873005,9.02381797,2351.0,2349.8,1.06389948]
[1770080874240,10.08724048,2350.9,2349.6,1.06401089]
[1770080874530,10.4578943,2350.8,2349.7,0.58208412]
[1770080874722,1.43407633,2350.8,2349.7,9.67446416]
[1770080875039,6.28863821,2351.5,2349.7,9.67446416]
[1770080875040,1.06324161,2351.3,2349.9,9.10526608]
[1770080875237,10.08705958,2351.3,2349.9,9.10526608]
[1770080875528,9.02381797,2351.2,2349.7,0.58208412]
[1770080876230,1.06333205,2351.1,2349.8,1.06392033]
[1770080876534,9.02381797,2351.0,2349.8,1.06392033]
[1770080876742,1.008715,2350.9,2349.9,0.59016858]
[1770080877142,1.008715,2350.9,2349.9,9.68354862]
[1770080877436,0.0011,2351.1,2349.9,9.69643466]
[1770080877946,0.0011,2351.1,2350.2,9.10526608]
[1770080878150,0.0011,2351.1,2350.5,0.01288604]
[1770080878359,0.0011,2351.1,2350.3,1.06369399]
[1770080878831,0.0011,2351.1,2350.3,1.07658003]
[1770080879046,0.0011,2351.1,2350.4,0.77259373]
[1770080881043,9.02491797,2351.1,2350.1,1.06378387]
[1770080881342,9.02491797,2351.1,2349.9,1.06487301]
[1770080881510,9.02491797,2351.1,2349.9,1.06486326]
[1770080881712,9.02491797,2351.1,2349.9,0.001]
[1770080881940,9.02381797,2350.9,2349.9,1.06487011]
[1770080882311,9.02381797,2350.9,2349.9,0.001]
[1770080882940,10.08733096,2350.7,2349.9,0.001]
[1770080883706,9.02381797,2350.6,2349.9,0.001]
[1770080883942,9.02381797,2350.4,2349.6,0.001]
[1770080884126,9.92619977,2350.3,2349.6,0.001]
[1770080884328,0.9023818,2350.3,2349.6,0.001]
[1770080884510,9.02381797,2350.6,2349.6,0.001]
[1770080884928,10.08740506,2350.6,2349.6,0.001]
[1770080885145,9.02381797,2350.6,2349.6,0.001]
[1770080885313,10.08738324,2350.6,2349.6,0.001]
[1770080886255,0.892,2350.7,2349.6,0.001]
[1770080889447,0.892,2350.7,2349.6,9.09338004]
[1770080889619,9.91581797,2350.7,2349.6,0.001]
[1770080889942,0.9024918,2351.0,2349.8,0.001]
[1770080890148,0.0011,2350.5,2349.8,0.001]
[1770080892524,9.02491797,2350.5,2349.8,0.001]
[1770080892838,9.92630977,2350.4,2349.8,0.001]
[1770080894460,0.0011,2350.5,2349.8,0.001]
[1770080897021,0.0011,2350.5,2349.9,0.01288604]
[1770080897645,0.0011,2350.7,2350.2,0.01288604]
[1770080898380,0.0011,2350.7,2349.8,0.001]
[1770080898579,0.0011,2350.7,2350.1,1.0637712]
[1770080898794,0.0011,2350.7,2349.9,1.06384669]
[1770080898942,9.02491797,2350.7,2350.0,0.53205046]
[1770080899850,9.02491797,2350.7,2350.0,1.59587854]
[1770080901083,0.0011,2350.7,2350.0,1.59587854]
[1770080901268,0.0011,2350.7,2350.0,1.60876458]
[1770080903164,0.0011,2350.7,2350.0,0.53205046]
[1770080903372,0.0011,2350.7,2349.9,1.06387316]
[1770080903558,0.0011,2350.7,2350.0,1.06381632]
[1770080903760,9.36428356,2350.7,2349.8,1.06489785]
[1770080904066,0.0011,2350.5,2349.8,1.06489785]
[1770080904445,0.0011,2350.5,2349.8,1.06488784]
[1770080904849,0.91770529,2350.4,2349.8,0.001]
[1770080905050,9.36318356,2350.4,2349.8,0.001]
[1770080905263,1.96051463,2350.3,2349.8,0.001]
[1770080905464,10.4059741,2350.3,2349.8,0.001]
[1770080905875,1.04279054,2350.3,2349.8,0.001]
[1770080906172,0.0011,2350.5,2349.8,0.001]
[1770080906379,0.91766932,2350.4,2349.8,0.001]
[1770080906568,0.0011,2350.5,2349.8,0.001]
[1770080906770,0.91766955,2350.4,2349.8,0.001]
[1770080907076,0.0011,2350.5,2349.8,0.001]
[1770080907279,0.91769364,2350.4,2349.8,0.001]
[1770080907451,1.62669094,2350.5,2349.8,0.001]
[1770080907654,0.91767361,2350.4,2349.8,0.001]
[1770080907945,1.62669094,2350.5,2349.8,0.001]
[1770080908149,0.0011,2350.5,2349.9,0.01288604]
[1770080908753,0.0011,2350.5,2349.8,0.001]
[1770080910483,3.7911,2350.5,2349.8,0.001]
[1770080912365,9.36318356,2350.2,2349.6,0.001]
[1770080912683,9.36318356,2350.0,2349.5,0.001]
[1770080912984,0.9183874,2349.9,2349.5,0.001]
[1770080913279,0.9183874,2349.8,2349.5,0.001]
[1770080913482,1.14500988,2350.1,2349.5,0.001]
[1770080913682,0.91815572,2350.0,2349.5,0.001]
[1770080913858,0.91815572,2349.9,2349.5,0.001]
[1770080914057,1.14500988,2350.2,2349.5,0.001]
[1770080914255,1.14500988,2350.2,2349.0,4.25712581]
[1770080914256,9.36318356,2349.8,2348.3,1.06456926]
[1770080914476,9.36318356,2349.8,2348.1,1.06468567]
[1770080914477,10.50819344,2349.4,2348.1,1.06468567]
[1770080914677,10.50819344,2349.4,2347.8,9.23420702]
[1770080914678,9.36318356,2349.2,2347.9,1.07763323]
[1770080914887,9.36318356,2349.2,2347.6,4.27253248]
[1770080914888,9.36318356,2349.0,2347.6,0.01288604]
[1770080915095,12.56893893,2348.9,2347.7,0.01288604]
[1770080915296,9.36318356,2348.7,2347.6,0.01288604]
[1770080915458,3.79190968,2348.6,2347.6,0.01288604]
[1770080915659,9.36318356,2348.4,2347.3,0.1124155]
[1770080915854,9.36318356,2348.2,2347.3,0.1124155]
[1770080916092,9.36318356,2348.0,2347.3,0.1124155]
[1770080916302,10.27779228,2347.9,2346.7,1.06531864]
[1770080916482,10.27779228,2347.9,2346.1,9.24709306]
[1770080916483,9.36318356,2347.6,2346.1,1.0655528]
[1770080916805,10.27779228,2347.5,2346.2,0.53279457]
[1770080917095,10.27800588,2347.4,2346.2,0.53279457]
[1770080917393,10.27800588,2347.4,2346.1,1.06557457]
[1770080917394,9.36318356,2347.4,2346.1,1.06557457]
[1770080917974,0.892,2347.5,2346.1,10.29978159]
[1770080918289,11.28296279,2347.8,2346.4,0.01288604]
[1770080918490,11.28296279,2347.8,2346.5,1.06541657]
[1770080919063,9.36318356,2347.7,2346.4,1.07832011]
[1770080919304,1.23478235,2347.6,2346.4,1.06543378]
[1770080919474,1.23478235,2347.6,2346.5,0.01288604]
[1770080919806,1.23478235,2347.6,2346.4,1.06543378]
[1770080920008,1.23478235,2347.6,2346.5,0.01288604]
[1770080920188,0.892,2347.8,2346.5,0.01288604]
[1770080920371,0.892,2347.8,2346.5,9.24709306]
[1770080920694,0.892,2347.8,2346.6,1.06537117]
[1770080921489,0.892,2347.8,2346.6,1.07825721]
[1770080922093,11.32001418,2347.8,2346.6,1.06537117]
[1770080922280,9.36318356,2347.6,2346.4,1.06543677]
[1770080922483,9.36318356,2347.6,2346.2,4.26205785]
[1770080922484,10.42813613,2347.6,2346.2,4.26205785]
[1770080922682,9.36318356,2347.6,2346.2,4.26205785]
[1770080922979,1.15600876,2347.5,2346.7,0.01288604]
[1770080923183,9.36318356,2347.6,2346.2,4.26205785]
[1770080923383,9.36318356,2347.6,2346.3,0.01288604]
[1770080924500,10.49518498,2347.7,2346.5,1.06541657]
[1770080924798,9.36318356,2347.5,2346.5,1.06541657]
[1770080924999,9.36318356,2347.5,2346.3,1.06548664]
[1770080925183,9.36318356,2347.3,2346.3,1.06547478]
[1770080925698,0.93631836,2347.4,2346.4,1.06545542]
[1770080925898,11.56006793,2347.7,2346.4,1.06545542]
[1770080926196,9.36318356,2347.6,2346.4,1.06545542]
[1770080926599,9.36318356,2347.6,2346.7,1.06532577]
[1770080926769,1.13200142,2347.7,2347.0,0.01288604]
[1770080926977,10.42794898,2348.0,2347.0,0.01288604]
[1770080927192,10.42794898,2348.0,2346.7,1.06532577]
[1770080927498,10.42794898,2348.0,2346.9,0.01288604]
[1770080927702,10.42792454,2348.0,2346.9,0.01288604]
[1770080927871,10.42792454,2348.0,2346.7,1.06532577]
[1770080928070,10.92115474,2347.9,2346.7,1.06532577]
[1770080928278,11.49247176,2347.9,2346.7,1.06532577]
[1770080928511,10.92115474,2347.9,2346.7,1.06532577]
[1770080930411,11.98593676,2347.9,2346.7,1.06532577]
[1770080930818,0.0011,2347.7,2346.7,1.06532577]
[1770080931006,0.0011,2347.7,2346.8,0.53396007]
[1770080932481,0.0011,2347.7,2347.1,0.01288604]
[1770080932680,0.0011,2347.7,2347.2,1.06509884]
[1770080932979,0.0011,2347.7,2347.2,1.07798488]
[1770080933178,0.0011,2347.9,2347.2,1.07798488]
[1770080933378,0.0011,2347.9,2347.3,0.53383802]
[1770080933780,0.0011,2347.9,2347.0,1.06516208]
[1770080933996,8.86157097,2347.9,2347.0,1.06516974]
[1770080934193,0.0011,2347.9,2347.1,1.06511848]
[1770080934391,0.0011,2347.9,2347.0,1.06515517]
[1770080934620,0.0011,2347.9,2346.8,4.2610361]
[1770080934800,9.74772807,2347.9,2346.8,4.2610361]
[1770080935387,8.86047097,2347.7,2346.6,1.06535272]
[1770080935615,9.098954,2347.6,2346.7,1.06532509]
[1770080935782,8.86047097,2347.6,2346.7,1.06532509]
[1770080935981,8.86047097,2347.6,2346.4,0.001]
[1770080935982,0.8860471,2347.5,2346.4,0.001]
[1770080936202,9.74651807,2347.5,2346.5,1.06538491]
[1770080936512,9.74651807,2347.5,2346.6,1.06537027]
[1770080936711,0.8860471,2347.5,2346.4,4.26266839]
[1770080936930,0.893,2347.6,2346.7,0.01288604]
[1770080937710,0.893,2347.6,2346.4,4.26266839]
[1770080938116,9.75347097,2347.6,2346.4,4.26266839]
[1770080938312,0.893,2347.6,2346.4,13.55422336]
[1770080939015,0.893,2347.6,2346.7,0.01288604]
[1770080939682,1.08182993,2347.6,2346.7,0.01288604]
[1770080939887,0.0011,2347.9,2347.0,0.01288604]
[1770080940520,0.0011,2347.9,2347.3,0.01288604]
[1770080940892,1.43001031,2348.5,2347.4,1.06500809]
[1770080941114,1.43001031,2348.5,2347.6,0.01288604]
[1770080942391,1.43001031,2348.5,2347.4,1.06500809]
[1770080942593,1.43001031,2348.5,2347.5,0.53379265]
[1770080942997,1.43001031,2348.5,2347.6,1.0778034]
[1770080944286,0.91707359,2348.4,2347.6,1.0778034]
[1770080944486,1.43001031,2348.5,2347.6,1.06491736]
[1770080944691,0.91682535,2348.4,2347.6,1.06491736]
[1770080944918,0.0011,2348.3,2347.6,1.6507553]
[1770080945118,0.0011,2348.3,2347.6,1.66364134]
[1770080946311,0.0011,2348.3,2347.9,0.01288604]
[1770080946717,0.0011,2348.5,2347.9,0.01288604]
[1770080947024,0.0011,2348.9,2347.6,10.94231027]
[1770080947225,0.91667473,2348.8,2347.9,0.01288604]
[1770080947439,1.10818403,2348.9,2347.9,0.01288604]
[1770080947728,0.9162491,2348.8,2348.2,0.01288604]
[1770080947907,0.0011,2348.9,2348.2,0.01288604]
[1770080948991,1.14500988,2349.5,2348.6,1.06446393]
[1770080949190,0.91560177,2349.4,2348.6,1.06446393]
[1770080949505,11.06945802,2349.7,2348.6,1.5979845]
[1770080949706,9.77518444,2349.6,2348.6,1.5979845]
[1770080949912,9.77518444,2349.5,2348.6,1.06446393]
[1770080950117,0.91471347,2349.4,2348.6,1.06446393]
[1770080950422,8.86047097,2349.5,2348.6,1.06446393]
[1770080951952,8.86047097,2349.8,2348.8,0.01288604]
[1770080952100,0.9134496,2349.7,2348.8,0.01288604]
[1770080952429,8.86047097,2349.8,2348.6,1.06446393]
[1770080952723,10.32120227,2349.8,2348.7,0.53352057]
[1770080952893,10.32120227,2349.8,2348.8,0.01288604]
[1770080953324,10.32120227,2349.8,2348.8,1.06437329]
[1770080953521,8.86047097,2349.6,2348.7,1.59791099]
[1770080953727,8.86047097,2349.6,2348.7,1.06439042]
[1770080956202,8.86047097,2349.6,2348.6,4.25784425]
[1770080958638,0.0011,2349.4,2348.6,4.25784425]
[1770080960841,0.0011,2349.4,2348.9,0.01288604]
[1770080961138,0.0011,2349.4,2348.6,4.25784425]
[1770080961527,8.28005639,2349.4,2348.6,4.25784425]
[1770080962238,8.28005639,2349.4,2348.5,1.06448654]
[1770080962814,8.28005639,2349.4,2348.3,1.06459992]
[1770080963630,8.28005639,2349.4,2348.5,0.01288604]
[1770080965044,8.28005639,2349.4,2348.6,1.06446393]
[1770080965244,9.10817203,2349.4,2348.6,1.5979845]
[1770080965418,0.0011,2349.4,2348.8,0.01288604]
[1770080965819,0.0011,2349.6,2348.8,8.6407883]
[1770080967230,0.0011,2349.6,2348.9,1.06432798]
[1770080967435,8.28005639,2349.6,2348.9,1.89356972]
[1770080967836,8.28005639,2349.6,2348.8,1.06433843]
[1770080968139,0.0011,2349.6,2348.8,1.07722447]
[1770080969117,0.0011,2349.6,2348.6,4.25749318]
[1770080969417,0.0011,2349.6,2348.8,0.01288604]
[1770080970420,8.28005639,2349.6,2348.6,4.25749318]
[1770080970614,8.28005639,2349.6,2348.7,0.53348432]
[1770080970841,9.1950347,2349.5,2348.6,4.25749318]
[1770080971045,8.27895639,2349.5,2348.6,4.25749318]
[1770080971414,8.27895639,2349.3,2348.6,1.06446087]
[1770080971622,8.28005639,2349.6,2348.6,1.06446087]
[1770080971842,0.91642472,2349.5,2348.6,1.06446087]
[1770080972040,0.91642472,2349.4,2348.7,0.53352026]
[1770080972245,8.27895639,2349.4,2348.6,1.06446087]
[1770080972750,12.06895639,2349.4,2348.6,1.06446087]
[1770080972952,12.06895639,2349.4,2348.8,0.001]
[1770080973448,12.07005639,2349.4,2348.8,0.001]
[1770080974556,0.91767233,2349.3,2348.8,0.001]
[1770080974725,3.7911,2349.4,2348.8,0.001]
[1770080974922,0.9177318,2349.3,2348.8,0.001]
[1770080975247,4.28482099,2349.4,2348.8,0.001]
[1770080975448,0.91830179,2349.3,2348.8,0.001]
[1770080975748,3.7911,2349.4,2348.8,0.001]
[1770080975948,0.91830165,2349.3,2348.8,0.001]
[1770080976151,1.2988358,2349.3,2348.8,0.001]
[1770080976323,0.91904967,2349.2,2348.8,0.001]
[1770080976525,3.7911,2349.4,2348.8,0.001]
[1770080976726,0.91904885,2349.3,2348.8,0.001]
[1770080976927,0.91904885,2349.2,2348.8,0.001]
[1770080977127,12.07005639,2349.4,2348.8,0.001]
[1770080977366,2.24055615,2349.3,2348.8,0.001]
[1770080977547,0.91904952,2349.2,2348.8,0.001]
[1770080977730,3.7911,2349.4,2348.8,0.001]
[1770080977932,0.91961513,2349.3,2348.8,0.001]
[1770080978130,0.91961513,2349.2,2348.8,0.001]
[1770080978345,0.92011111,2349.1,2348.8,0.001]
[1770080978568,4.93610988,2349.4,2348.8,0.001]
[1770080978765,2.24161755,2349.3,2348.8,0.001]
[1770080978941,0.92011092,2349.2,2348.8,0.001]
[1770080979261,9.19906731,2349.1,2348.5,0.001]
[1770080979483,0.92011092,2349.0,2348.5,0.001]
[1770080979640,1.84001765,2348.9,2348.5,0.001]
[1770080979847,9.19886312,2348.9,2348.5,0.001]
[1770080980038,0.92023716,2348.8,2348.5,0.001]
[1770080980239,0.92023716,2348.7,2348.5,0.001]
[1770080980456,9.19886312,2348.9,2348.5,0.001]
[1770080980638,1.95438563,2348.8,2348.5,0.001]
[1770080980855,0.91999833,2348.7,2348.5,0.001]
[1770080981053,1.0343873,2348.8,2348.5,0.001]
[1770080981255,0.92000351,2348.7,2348.5,0.001]
[1770080981463,1.14500988,2349.1,2348.5,0.001]
[1770080981668,0.91964977,2349.0,2348.5,0.001]
[1770080981870,0.91964977,2348.9,2348.5,0.001]
[1770080982068,2.75061722,2349.1,2348.5,0.001]
[1770080982251,0.91962425,2349.0,2348.6,0.01288604]
[1770080982460,0.91962425,2348.9,2348.6,0.01288604]
[1770080982681,0.8941,2349.4,2348.6,8.6407883]
[1770080982682,0.0011,2349.4,2348.6,8.6407883]
[1770080982845,0.91941517,2349.3,2348.6,0.01288604]
[1770080983045,0.91941367,2349.2,2348.5,0.001]
[1770080983245,0.91941367,2349.1,2348.5,0.001]
[1770080983444,9.1989034,2349.2,2348.5,0.001]
[1770080983687,0.91950897,2349.1,2348.5,0.001]
[1770080983891,9.1989034,2349.2,2348.5,0.001]
[1770080984090,9.1989034,2349.2,2348.6,0.01288604]
[1770080984091,0.91948793,2349.1,2348.6,0.01288604]
[1770080984249,1.14610988,2349.4,2348.6,0.01288604]
[1770080984594,0.91946721,2349.3,2348.6,0.01288604]
[1770080984796,0.91946721,2349.2,2348.9,0.01288604]
[1770080984993,0.0011,2349.4,2348.6,0.01288604]
[1770080985170,0.91942151,2349.3,2348.6,0.01288604]
[1770080985493,0.0011,2349.4,2348.7,1.06441861]
[1770080985494,0.91942151,2349.2,2348.7,1.06441861]
[1770080985783,0.0011,2349.4,2348.7,1.06441861]
[1770080985950,0.91942142,2349.3,2348.7,1.06441861]
[1770080986275,0.91942142,2349.2,2348.6,1.0644333]
[1770080986477,0.94371663,2349.4,2348.6,1.0644333]
[1770080986665,0.91944109,2349.3,2348.6,1.0644333]
[1770080986843,0.91944109,2349.2,2348.8,0.001]
[1770080987044,9.22267302,2349.4,2348.8,0.001]
[1770080987275,0.0011,2349.2,2348.8,0.001]
[1770080989376,0.0011,2349.2,2348.5,0.001]
[1770080989377,9.19840675,2349.1,2348.5,0.001]
[1770080989581,0.91945036,2349.0,2348.5,0.001]
[1770080989955,0.0011,2349.2,2348.5,0.01388604]
[1770080990162,0.91947851,2349.1,2348.5,0.01388604]
[1770080990345,0.0011,2349.2,2348.5,0.54756364]
[1770080990541,0.91944211,2349.1,2348.5,0.54756364]
[1770080990844,0.0011,2349.2,2348.5,0.54756364]
[1770080991045,0.91944196,2349.1,2348.5,0.54756364]
[1770080991272,0.0011,2349.2,2348.5,0.54756364]
[1770080991570,0.91943689,2349.1,2348.5,0.54756364]
[1770080991874,0.0011,2349.2,2348.6,1.06446393]
[1770080992075,0.91943706,2349.1,2348.6,1.06446393]
[1770080992282,0.0011,2349.2,2348.6,1.06446393]
[1770080992574,0.91940994,2349.1,2348.6,1.06446393]
[1770080992775,0.0011,2349.2,2348.6,1.06446393]
[1770080992952,0.91941001,2349.1,2348.6,1.06446393]
[1770080993285,0.0011,2349.2,2348.6,1.06446393]
[1770080993472,0.91938603,2349.1,2348.6,1.06446393]
[1770080993649,0.0011,2349.2,2348.6,1.06446393]
[1770080993974,0.9193859,2349.1,2348.6,1.06446393]
[1770080994168,0.83247044,2349.2,2348.6,1.06446393]
[1770080994363,0.91938616,2349.1,2348.6,1.06446393]
[1770080994570,7.998965,2349.2,2348.5,0.001]
[1770080994758,1.83380002,2349.1,2348.5,0.001]
[1770080995080,7.16649456,2348.9,2347.6,0.001]
[1770080995244,0.91940253,2348.8,2348.1,1.0646838]
[1770080995447,0.91940253,2348.7,2348.1,1.06465891]
[1770080995647,0.91940253,2348.6,2348.1,1.06465891]
[1770080995875,0.9230907,2348.7,2348.0,4.25885872]
[1770080996179,0.919135,2348.6,2348.0,4.25885872]
[1770080996377,0.9230907,2348.7,2348.0,1.06473594]
[1770080996577,0.91890197,2348.6,2348.0,1.06473594]
[1770080996878,0.9230907,2348.7,2348.0,1.06473594]
[1770080997066,0.91890184,2348.6,2348.0,1.06473594]
[1770080997269,0.9230907,2348.7,2348.0,1.06473594]
[1770080997470,0.91873477,2348.6,2348.0,1.06473594]
[1770080997770,0.9230907,2348.7,2348.0,1.06473594]
[1770080997971,0.91873485,2348.6,2348.0,1.06473594]
[1770080998144,0.9230907,2348.7,2348.0,1.06473594]
[1770080998468,0.91873058,2348.6,2348.0,1.06473594]